bitfinex/quotes_ETHUSD_20251126
["timestamp","ask_amount","ask_price","bid_price","bid_amount"]
[1764177175887,0.002,2952.1,2952.0,4.83363198]
[1764177176069,0.002,2952.1,2952.0,25.27781398]
[1764177176469,0.002,2952.1,2952.0,25.77700815]
[1764177176685,0.002,2952.1,2952.0,24.04884715]
[1764177176899,0.002,2952.1,2952.0,22.31971098]
[1764177177103,0.002,2952.1,2952.0,24.57751398]
[1764177177599,0.002,2952.1,2952.0,31.29432275]
[1764177178005,0.002,2952.1,2952.0,41.55044075]
[1764177178504,0.002,2952.1,2952.0,42.04963492]
[1764177179408,0.002,2952.1,2952.0,34.61863198]
[1764177179577,0.002,2952.1,2952.0,42.19165215]
[1764177179775,0.002,2952.1,2952.0,41.87876015]
[1764177179978,0.002,2952.1,2952.0,15.33282615]
[1764177180191,0.002,2952.1,2952.0,43.55050515]
[1764177180390,0.002,2952.1,2952.0,42.28064815]
[1764177180786,0.002,2952.1,2952.0,41.99057215]
[1764177181090,0.002,2952.1,2952.0,15.67169887]
[1764177181286,0.002,2952.1,2952.0,15.88669887]
[1764177181488,0.002,2952.1,2952.0,16.61229298]
[1764177182110,0.002,2952.1,2952.0,24.30782898]
[1764177182301,6.71880877,2952.1,2952.0,10.1]
[1764177182489,6.71880877,2952.1,2952.0,10.0]
[1764177182691,6.71880877,2952.1,2952.0,10.215]
[1764177182891,6.71880877,2952.1,2952.0,10.1]
[1764177183097,17.49511754,2952.1,2952.0,10.0]
[1764177183281,17.49511754,2952.1,2952.0,10.1]
[1764177183613,17.90062154,2952.1,2952.0,5.60524652]
[1764177183793,18.62621565,2952.1,2952.0,5.60524652]
[1764177183997,18.94238553,2952.1,2952.0,1.78077451]
[1764177184196,18.62621565,2952.1,2952.0,1.78077451]
[1764177184390,18.94197217,2952.1,2952.0,1.78077451]
[1764177184714,1.13109811,2952.0,2951.6,0.001]
[1764177184903,20.30173052,2952.1,2951.6,0.001]
[1764177184904,1.13109811,2951.8,2951.6,0.001]
[1764177185222,4.11347228,2951.7,2951.6,0.001]
[1764177186129,5.53100019,2951.9,2951.6,0.001]
[1764177186413,0.405504,2951.8,2951.6,0.001]
[1764177187291,3.79338217,2951.7,2951.6,0.001]
[1764177188219,4.51897628,2951.7,2951.6,0.001]
[1764177188793,13.66861204,2951.7,2951.6,0.001]
[1764177190298,13.66861204,2951.7,2951.5,0.001]
[1764177190299,1.13109811,2951.6,2951.5,0.001]
[1764177190623,2.83673581,2951.6,2951.5,0.001]
[1764177191609,6.22472876,2951.6,2951.5,0.001]
[1764177196022,5.81922476,2951.6,2951.5,0.001]
[1764177196200,4.11358706,2951.6,2951.5,0.001]
[1764177196397,4.51909106,2951.6,2951.5,0.001]
[1764177197104,4.65485432,2951.6,2951.5,0.001]
[1764177201425,4.65485432,2951.6,2951.3,0.001]
[1764177201628,0.620504,2951.5,2951.3,0.001]
[1764177201817,1.23128873,2951.4,2951.3,0.001]
[1764177202014,1.36706029,2951.4,2951.3,0.001]
[1764177202732,5.48087693,2951.4,2951.3,0.001]
[1764177205029,11.82087693,2951.4,2951.3,0.001]
[1764177206402,7.30155629,2951.4,2951.3,0.001]
[1764177206601,3.60468333,2951.9,2951.3,0.001]
[1764177206928,0.72559411,2951.7,2951.5,0.1]
[1764177207116,0.72559411,2951.7,2951.4,0.1]
[1764177207924,0.405504,2951.6,2951.4,0.1]
[1764177208124,0.72559411,2951.7,2951.5,0.1]
[1764177208333,1.8361749,2951.7,2951.5,0.1]
[1764177208631,0.405504,2951.6,2951.3,0.001]
[1764177208839,3.79361174,2951.5,2951.4,0.1]
[1764177209340,0.405504,2951.4,2951.3,0.001]
[1764177209509,0.405504,2951.4,2951.3,0.101]
[1764177210036,0.405504,2951.7,2951.3,0.001]
[1764177210513,0.405504,2951.7,2951.5,0.1]
[1764177210928,0.405504,2951.5,2951.3,0.001]
[1764177211235,1.16420339,2951.5,2951.3,0.001]
[1764177212943,1.16420339,2951.5,2951.3,0.101]
[1764177213144,3.79372653,2951.4,2951.3,0.101]
[1764177213441,4.11072691,2951.4,2951.3,0.101]
[1764177214028,4.11072691,2951.4,2951.3,0.001]
[1764177214321,4.93648139,2951.4,2951.3,0.001]
[1764177214943,4.93648139,2951.4,2951.3,0.101]
[1764177215436,4.93648139,2951.4,2951.3,0.001]
[1764177215940,4.93648139,2951.4,2951.3,0.101]
[1764177216433,4.93648139,2951.4,2951.3,0.001]
[1764177217209,4.93648139,2951.4,2951.3,0.101]
[1764177220350,4.93648139,2951.4,2951.3,0.001]
[1764177220536,5.6620755,2951.4,2951.3,0.001]
[1764177222328,5.6620755,2951.4,2951.3,0.101]
[1764177222646,5.6620755,2951.4,2951.3,0.001]
[1764177223016,5.6620755,2951.4,2951.3,0.101]
[1764177223221,5.6620755,2951.4,2951.3,0.001]
[1764177223431,5.6620755,2951.4,2951.3,0.101]
[1764177224234,5.6620755,2951.4,2951.3,0.001]
[1764177224414,5.6620755,2951.4,2951.3,0.101]
[1764177224824,4.93648139,2951.4,2951.3,0.001]
[1764177225037,4.93648139,2951.4,2951.3,0.101]
[1764177225351,4.93648139,2951.4,2951.3,0.001]
[1764177226658,4.93648139,2951.4,2951.3,0.101]
[1764177227458,4.93648139,2951.4,2951.3,0.001]
[1764177227459,1.14275486,2951.4,2951.3,0.001]
[1764177227630,3.38822253,2951.4,2951.3,0.101]
[1764177228231,3.38822253,2951.4,2951.3,0.001]
[1764177228852,3.38822253,2951.4,2951.3,0.101]
[1764177229362,0.002,2951.5,2951.3,0.001]
[1764177229561,0.002,2951.5,2951.4,0.1]
[1764177229751,0.7929084,2951.5,2951.4,0.1]
[1764177230060,0.7929084,2951.5,2951.3,0.001]
[1764177230659,0.7929084,2951.5,2951.4,0.1]
[1764177230864,0.7929084,2951.5,2951.3,0.001]
[1764177231167,0.7929084,2951.5,2951.4,0.1]
[1764177231955,3.38822253,2951.4,2951.3,0.001]
[1764177232261,3.38822253,2951.4,2951.3,0.101]
[1764177232669,4.59120201,2951.4,2951.3,0.001]
[1764177233032,4.9082694,2951.4,2951.3,0.001]
[1764177234075,4.9082694,2951.4,2951.3,0.101]
[1764177234576,4.9082694,2951.4,2951.3,0.001]
[1764177235769,4.9082694,2951.4,2951.3,0.101]
[1764177236153,4.5027654,2951.4,2951.3,0.001]
[1764177236468,3.70528992,2951.4,2951.3,0.001]
[1764177236666,3.70528992,2951.4,2951.3,0.101]
[1764177237249,3.70528992,2951.4,2951.3,0.001]
[1764177237454,3.70528992,2951.4,2951.3,0.101]
[1764177238383,3.70528992,2951.4,2951.3,0.001]
[1764177238676,3.70528992,2951.4,2951.3,0.101]
[1764177239470,3.70528992,2951.4,2951.3,0.001]
[1764177239688,4.4148309,2951.4,2951.3,0.001]
[1764177239849,4.4148309,2951.4,2951.3,0.101]
[1764177240550,4.8203349,2951.4,2951.3,0.001]
[1764177241949,4.8203349,2951.4,2951.3,0.101]
[1764177242146,3.70528992,2951.4,2951.3,0.001]
[1764177242566,3.70528992,2951.4,2951.3,0.101]
[1764177243568,3.70528992,2951.4,2951.3,0.001]
[1764177245757,3.38822253,2951.4,2951.3,0.001]
[1764177246487,4.83698957,2951.4,2951.3,0.001]
[1764177246662,0.405504,2951.3,2951.2,0.001]
[1764177246866,0.405504,2951.3,2950.7,0.001]
[1764177246867,8.52049357,2951.3,2950.7,0.001]
[1764177247157,1.13109811,2950.9,2950.7,0.001]
[1764177247373,9.17974571,2950.8,2950.7,0.001]
[1764177247776,0.405504,2950.7,2950.4,0.001]
[1764177247975,0.72317293,2950.7,2950.4,0.001]
[1764177248391,1.44876704,2950.7,2950.4,0.001]
[1764177248583,13.59025315,2950.7,2950.4,0.001]
[1764177248881,15.40185899,2950.7,2950.4,0.001]
[1764177252981,18.79088532,2950.7,2950.4,0.001]
[1764177253188,0.405504,2950.5,2950.4,0.001]
[1764177253383,0.72317293,2950.5,2950.4,0.001]
[1764177253976,0.85898736,2950.5,2950.4,0.001]
[1764177254181,3.47725145,2950.5,2950.4,0.001]
[1764177254894,6.8665075,2950.5,2950.4,0.001]
[1764177255690,13.2065075,2950.5,2950.4,0.001]
[1764177256070,12.34752014,2950.5,2950.4,0.001]
[1764177256269,10.45485016,2950.5,2950.4,0.001]
[1764177256781,10.86035416,2950.5,2950.4,0.001]
[1764177257793,11.17636974,2950.5,2950.4,0.001]
[1764177258178,11.31218048,2950.5,2950.4,0.001]
[1764177258587,11.31218048,2950.5,2948.5,0.001]
[1764177258791,9.15796378,2950.2,2948.5,0.001]
[1764177258988,13.48815859,2950.2,2948.5,0.001]
[1764177259373,13.62397717,2950.2,2948.5,0.001]
[1764177261671,19.96397717,2950.2,2948.5,0.001]
[1764177261873,20.27993549,2950.2,2948.5,0.001]
[1764177262072,22.79389185,2950.2,2948.5,0.001]
[1764177263475,1.13109811,2950.1,2948.5,0.001]
[1764177263787,32.96269395,2950.2,2948.5,0.001]
[1764177263788,9.88355789,2949.7,2948.5,0.001]
[1764177263988,10.09855789,2949.7,2948.5,0.001]
[1764177264390,10.23440369,2949.7,2948.5,0.001]
[1764177264600,11.25784406,2949.7,2948.5,0.001]
[1764177264909,14.64801933,2949.7,2948.5,0.001]
[1764177268011,14.64801933,2949.7,2949.5,0.001]
[1764177273285,14.96399531,2949.7,2949.5,0.001]
[1764177273598,21.30399531,2949.7,2949.5,0.001]
[1764177273985,1.13109811,2949.6,2949.5,0.001]
[1764177274228,3.91648062,2949.6,2949.5,0.001]
[1764177274513,4.05233518,2949.6,2949.5,0.001]
[1764177276022,11.01562538,2949.6,2949.5,0.001]
[1764177276312,14.40591558,2949.6,2949.0,0.001]
[1764177276618,14.61038095,2949.4,2949.0,0.001]
[1764177276913,14.92635693,2949.4,2949.0,0.001]
[1764177277115,14.92736785,2949.4,2949.0,0.001]
[1764177277618,15.06323718,2949.4,2949.0,0.001]
[1764177277792,18.41292817,2949.4,2949.0,0.001]
[1764177278313,25.37644827,2949.4,2949.0,0.001]
[1764177278508,20.6579195,2949.4,2949.0,0.001]
[1764177281921,0.405504,2949.2,2949.0,0.001]
[1764177282093,8.00308501,2949.1,2949.0,0.001]
[1764177282414,12.55155851,2949.1,2949.0,0.001]
[1764177282601,12.68743522,2949.1,2949.0,0.001]
[1764177285622,16.26043522,2949.1,2949.0,0.001]
[1764177287413,0.405504,2948.8,2948.7,0.001]
[1764177287612,0.405504,2948.8,2948.4,0.001]
[1764177287613,20.59224889,2948.8,2948.4,0.001]
[1764177287821,4.70409811,2948.5,2948.4,0.001]
[1764177288023,5.02108501,2948.5,2948.4,0.001]
[1764177288520,1.58400004,2948.5,2948.4,0.001]
[1764177288726,2.12120004,2948.5,2948.4,0.001]
[1764177288906,5.51275506,2948.5,2948.4,0.001]
[1764177297220,11.85275506,2948.5,2948.4,0.001]
[1764177298531,25.33855234,2948.5,2948.4,0.001]
[1764177300617,18.5956537,2948.5,2948.4,0.001]
[1764177300823,25.33855234,2948.5,2948.4,0.001]
[1764177301023,18.5956537,2948.5,2948.4,0.001]
[1764177302429,25.33855234,2948.5,2948.4,0.001]
[1764177303234,25.34055234,2948.5,2948.4,0.001]
[1764177303546,18.5976537,2948.5,2948.4,0.001]
[1764177303841,18.67673867,2948.5,2948.4,0.001]
[1764177306650,18.67542398,2948.5,2948.4,0.001]
[1764177309223,22.24842398,2948.5,2948.4,0.001]
[1764177309423,4.70409811,2948.4,2945.7,10.55158395]
[1764177309726,7.87268206,2947.7,2945.9,0.215]
[1764177309932,8.40466896,2947.7,2946.1,3.3942557]
[1764177310140,8.40466896,2947.7,2945.9,3.60951251]
[1764177310352,8.40466896,2947.7,2946.0,4.11998472]
[1764177310526,9.42412874,2947.7,2946.2,0.72559411]
[1764177310858,12.81660422,2947.7,2946.1,0.72559411]
[1764177311523,12.81660422,2947.7,2945.6,3.39480536]
[1764177311723,12.81660422,2947.7,2945.4,3.39505266]
[1764177311952,4.70409811,2947.6,2945.4,0.0008]
[1764177312123,0.405504,2946.3,2945.2,0.215]
[1764177312327,0.405504,2946.3,2945.3,8.290423]
[1764177312545,0.405504,2946.3,2945.4,0.72559411]
[1764177312860,0.405504,2946.3,2945.2,0.215]
[1764177312861,0.405504,2946.1,2945.2,0.215]
[1764177313025,0.405504,2946.1,2945.3,0.1]
[1764177313225,0.405504,2946.1,2945.6,0.1]
[1764177313427,0.405504,2946.1,2945.2,0.215]
[1764177313626,7.14708795,2946.1,2945.2,0.215]
[1764177313834,6.74158395,2945.8,2945.4,0.1]
[1764177314038,0.405504,2945.7,2944.3,7.90193897]
[1764177314263,0.405504,2945.7,2945.1,0.1]
[1764177314652,0.405504,2945.7,2945.4,0.1]
[1764177314955,6.78978814,2945.6,2944.9,0.1]
[1764177315154,6.78978814,2945.6,2944.3,0.5985588]
[1764177315155,0.405504,2945.5,2944.3,0.4835588]
[1764177315458,0.405504,2945.5,2944.0,0.215]
[1764177315661,0.405504,2945.5,2944.1,0.1]
[1764177315662,1.13109811,2945.5,2944.1,0.1]
[1764177315866,1.13109811,2945.5,2943.7,0.5993588]
[1764177316170,1.13109811,2945.3,2943.8,0.1]
[1764177316329,0.405504,2945.1,2944.4,0.1]
[1764177316535,0.405504,2945.1,2943.3,3.99609935]
[1764177316734,0.405504,2944.9,2943.4,0.72559411]
[1764177317064,0.405504,2944.5,2944.2,0.1]
[1764177317353,0.405504,2944.5,2942.8,3.39805951]
[1764177317354,0.405504,2944.3,2941.7,0.05]
[1764177317534,0.405504,2944.3,2941.1,13.97294]
[1764177317535,1.13109811,2944.0,2942.1,1.020705]
[1764177317743,0.405504,2943.8,2942.2,4.720785]
[1764177317958,0.405504,2943.8,2941.9,0.94059411]
[1764177318541,0.405504,2943.8,2942.8,0.1]
[1764177318862,0.405504,2943.8,2941.9,0.94059411]
[1764177319031,1.24643723,2943.9,2943.1,0.1]
[1764177319032,1.13109811,2943.6,2943.1,0.1]
[1764177319359,1.02077446,2944.4,2942.0,6.79809652]
[1764177319360,3.39523987,2945.3,2942.9,0.215]
[1764177319560,1.02042725,2945.0,2943.3,0.1]
[1764177319747,1.02042725,2945.0,2944.2,0.1]
[1764177319936,1.02042725,2945.0,2943.2,0.41339213]
[1764177319937,1.02042725,2945.0,2943.9,0.1]
[1764177320130,1.02042725,2945.0,2943.2,0.41339213]
[1764177320335,1.02042725,2945.0,2943.9,0.1]
[1764177320829,1.02042725,2945.0,2943.2,0.41339213]
[1764177320830,0.25806291,2945.0,2943.2,0.41339213]
[1764177321030,0.25806291,2945.0,2944.6,0.1]
[1764177321031,0.72559411,2945.0,2944.6,0.1]
[1764177321475,0.72559411,2945.0,2943.4,0.72559411]
[1764177321671,0.72559411,2945.0,2944.7,0.1]
[1764177321838,0.72559411,2945.0,2943.4,0.72559411]
[1764177321839,0.405504,2944.9,2944.2,0.0008]
[1764177322035,0.405504,2944.9,2944.1,0.1]
[1764177322233,0.405504,2944.9,2943.8,0.1]
[1764177322453,0.215,2944.8,2944.2,0.1]
[1764177322654,0.405504,2944.7,2943.5,6.876513]
[1764177322858,0.405504,2944.7,2943.4,0.72559411]
[1764177323060,3.39547044,2945.1,2943.9,0.72559411]
[1764177323566,3.39547044,2945.1,2944.9,0.1]
[1764177323756,0.405504,2945.0,2944.9,0.1]
[1764177324072,0.405504,2945.0,2944.8,0.1]
[1764177324437,0.405504,2945.0,2944.3,0.1]
[1764177324774,0.405504,2945.0,2944.0,12.537549]
[1764177324980,6.79140208,2944.9,2943.8,0.72559411]
[1764177325471,0.405504,2944.8,2943.9,0.1]
[1764177325640,0.405504,2944.8,2944.5,0.1]
[1764177326037,0.405504,2944.8,2943.6,0.72559411]
[1764177326370,0.405504,2944.8,2943.9,0.1]
[1764177326568,1.14669461,2944.8,2943.8,0.1]
[1764177326739,1.14669461,2944.8,2943.9,0.1]
[1764177326943,1.14669461,2944.8,2944.4,0.1]
[1764177327353,0.405504,2944.6,2944.5,0.1]
[1764177327667,1.1993598,2944.6,2944.4,0.1]
[1764177327968,1.1993598,2944.6,2944.5,0.1]
[1764177328162,1.1993598,2944.6,2944.4,0.1]
[1764177328360,1.1993598,2944.6,2944.2,0.1]
[1764177328547,1.1993598,2944.6,2943.5,0.215]
[1764177328753,1.1993598,2944.6,2943.6,0.1]
[1764177329075,1.1993598,2944.6,2944.2,0.1]
[1764177329274,0.215,2944.9,2943.3,0.94059411]
[1764177329275,0.405504,2944.2,2943.3,0.94059411]
[1764177329476,0.405504,2944.2,2943.1,0.72559411]
[1764177329644,0.405504,2944.2,2943.8,0.1]
[1764177329971,0.405504,2944.2,2943.1,0.94059411]
[1764177330172,0.72559411,2945.2,2943.1,0.94059411]
[1764177330377,0.75161404,2945.1,2944.0,0.0008]
[1764177330545,0.96661404,2945.1,2944.2,0.1]
[1764177330745,0.405504,2945.0,2944.8,0.1]
[1764177331365,0.405504,2944.8,2944.5,0.1]
[1764177331675,3.39559855,2945.0,2943.9,0.215]
[1764177331977,0.405504,2944.9,2944.2,0.1]
[1764177332180,0.405504,2944.9,2944.8,0.1]
[1764177332376,0.405504,2944.9,2944.8,0.0008]
[1764177332587,0.405504,2944.9,2944.4,0.0008]
[1764177332744,0.405504,2944.9,2944.0,0.0008]
[1764177332943,0.405504,2944.9,2944.3,0.1]
[1764177333147,0.405504,2944.9,2944.8,0.1]
[1764177333642,3.39538146,2945.2,2944.3,3.39633078]
[1764177333878,6.34,2945.5,2944.4,10.18883301]
[1764177334082,6.34,2945.5,2945.4,0.1]
[1764177334279,0.405504,2945.7,2944.5,0.72559411]
[1764177334487,0.72559411,2945.8,2945.7,0.1]
[1764177335355,4.12030561,2945.8,2945.7,0.1]
[1764177335555,4.12030561,2945.8,2945.2,0.1]
[1764177335757,4.12030561,2945.8,2944.7,0.215]
[1764177335758,0.405504,2945.7,2945.0,3.39558573]
[1764177336091,0.405504,2945.7,2945.1,0.1]
[1764177336302,0.405504,2945.7,2944.8,3.39581635]
[1764177336303,3.3942027,2946.2,2944.9,0.0008]
[1764177336603,0.72559411,2946.1,2945.0,0.41186892]
[1764177336885,0.72559411,2946.1,2946.0,0.1]
[1764177337071,0.405504,2946.0,2944.8,10.18744905]
[1764177337289,3.39443312,2946.0,2945.3,3.39514257]
[1764177337595,3.79993712,2946.0,2945.9,0.1]
[1764177337802,0.405504,2945.9,2944.7,0.215]
[1764177337963,0.215,2945.8,2944.9,0.0008]
[1764177338162,1.29538034,2945.8,2944.8,0.72559411]
[1764177338364,0.405504,2945.9,2944.8,0.72559411]
[1764177338997,0.405504,2945.9,2945.8,0.1]
[1764177339370,3.80005235,2945.9,2945.8,0.1]
[1764177339695,3.80005235,2945.9,2945.1,3.39544081]
[1764177339696,3.80005235,2945.9,2944.8,0.72559411]
[1764177339991,7.1946007,2945.9,2944.8,0.94059411]
[1764177340599,3.80005235,2945.9,2945.8,0.1]
[1764177340761,7.1946007,2945.9,2944.8,0.94059411]
[1764177340958,3.80005235,2945.9,2945.8,0.1]
[1764177341392,6.05434849,2949.5,2944.8,0.94059411]
[1764177341393,7.51192643,2947.1,2945.1,7.25174623]
[1764177341562,0.72559411,2946.9,2945.4,0.41186892]
[1764177341762,0.72559411,2946.9,2945.2,0.94059411]
[1764177341763,0.405504,2946.7,2945.2,0.94059411]
[1764177341969,0.53076564,2946.6,2945.8,0.0008]
[1764177342275,0.405504,2946.4,2946.3,0.1]
[1764177342569,9.58877815,2946.5,2945.1,3.39547044]
[1764177342770,0.405504,2946.3,2945.1,0.315]
[1764177342987,0.405504,2946.1,2944.7,1.01992421]
[1764177343162,0.405504,2946.1,2945.9,0.1]
[1764177343363,0.405504,2945.9,2945.5,0.1]
[1764177343595,0.405504,2945.9,2945.4,0.1]
[1764177343758,0.405504,2945.9,2945.1,3.3954595]
[1764177343759,0.405504,2945.9,2945.8,0.1]
[1764177344389,0.405504,2945.9,2945.1,6.79092994]
[1764177344695,0.405504,2945.9,2945.8,0.1]
[1764177344908,3.39443312,2946.0,2945.8,0.1]
[1764177345106,3.39435634,2946.1,2945.1,6.79172994]
[1764177345293,3.39435634,2946.1,2945.1,6.79092994]
[1764177345495,0.405504,2946.1,2946.0,0.1]
[1764177345678,0.405504,2946.1,2944.9,0.215]
[1764177345878,0.405504,2946.1,2945.5,0.1]
[1764177346066,0.405504,2946.1,2946.0,0.1]
[1764177346710,7.78697959,2946.1,2945.0,0.215]
[1764177346870,7.78697959,2946.1,2943.5,3.39822292]
[1764177346871,0.405504,2945.7,2944.1,0.215]
[1764177347205,0.405504,2945.5,2944.8,0.0008]
[1764177347396,1.13109811,2945.3,2944.1,3.61153368]
[1764177347602,0.405504,2945.1,2944.1,0.0008]
[1764177347797,0.405504,2945.1,2943.8,0.101]
[1764177348007,0.405504,2945.1,2944.4,0.1]
[1764177348307,0.405504,2945.2,2943.8,3.39793647]
[1764177348551,0.405504,2945.2,2944.5,0.1]
[1764177348552,0.31617088,2945.1,2944.5,0.1]
[1764177348672,0.215,2945.1,2943.9,14.530837]
[1764177348874,0.215,2945.1,2943.8,10.19187627]
[1764177349102,0.215,2945.1,2945.0,0.1]
[1764177349302,0.215,2945.1,2944.8,0.1]
[1764177349303,0.405504,2945.0,2944.8,0.1]
[1764177349472,6.79140208,2944.9,2944.1,0.1]
[1764177349821,0.405504,2944.8,2944.1,0.0008]
[1764177350029,0.405504,2944.8,2944.7,0.1]
[1764177350487,0.405504,2944.8,2944.0,3.39666242]
[1764177350688,0.405504,2944.8,2944.2,0.1]
[1764177350888,0.405504,2944.8,2944.7,0.1]
[1764177351202,0.405504,2944.8,2944.6,0.0008]
[1764177351409,0.405504,2944.8,2944.7,0.1]
[1764177351804,0.405504,2944.8,2943.8,0.001]
[1764177351805,0.405504,2945.0,2944.6,0.1]
[1764177352004,0.405504,2945.0,2943.9,6.79370902]
[1764177352303,6.79071786,2945.2,2943.9,10.19056353]
[1764177352304,3.39535515,2945.2,2943.9,10.19056353]
[1764177352506,0.31669965,2945.1,2944.1,0.0008]
[1764177352705,3.39535515,2945.2,2944.6,0.1]
[1764177352910,0.31671221,2945.1,2945.0,0.1]
[1764177353406,3.71218265,2945.1,2945.0,0.1]
[1764177353606,3.71218265,2945.1,2944.4,0.215]
[1764177353909,0.405504,2945.0,2944.4,0.215]
[1764177354102,0.405504,2945.0,2944.8,0.1]
[1764177354297,0.405504,2945.0,2944.9,0.1]
[1764177354603,0.405504,2945.0,2944.6,0.1]
[1764177354906,0.405504,2945.0,2944.9,0.1]
[1764177355212,0.405504,2945.0,2944.8,0.1]
[1764177355588,3.39570104,2944.9,2944.8,0.1]
[1764177355789,6.79140208,2944.9,2944.4,0.215]
[1764177355994,3.39570104,2944.9,2944.8,0.1]
[1764177356809,6.79140208,2944.9,2944.4,0.215]
[1764177357200,0.405504,2944.8,2944.7,0.1]
[1764177357402,1.16574501,2944.8,2944.4,0.1]
[1764177357703,0.405504,2944.6,2944.4,0.1]
[1764177358008,0.405504,2944.6,2943.9,3.39784333]
[1764177358194,0.405504,2944.6,2944.5,0.1]
[1764177358600,0.405504,2944.6,2943.9,3.39785005]
[1764177359032,0.405504,2944.6,2944.5,0.1]
[1764177359527,3.39616233,2944.5,2944.1,0.1]
[1764177359860,3.39616233,2944.5,2943.9,0.001]
[1764177359861,0.405504,2944.4,2943.9,0.001]
[1764177360135,0.405504,2944.4,2944.1,0.1]
[1764177360335,0.405504,2944.4,2943.9,0.001]
[1764177361108,0.405504,2944.4,2944.1,0.1]
[1764177361406,0.405504,2944.4,2944.3,0.1]
[1764177361612,7.19736734,2944.7,2944.4,0.1]
[1764177362007,11.74678193,2944.7,2944.0,0.0008]
[1764177362223,11.74678193,2944.7,2943.9,0.001]
[1764177362838,11.74678193,2944.7,2944.4,0.1]
[1764177363004,12.76718835,2944.7,2944.4,0.1]
[1764177363608,12.76718835,2944.7,2944.1,0.1]
[1764177363907,12.76718835,2944.7,2944.3,0.1]
[1764177364108,11.74678193,2944.7,2944.4,0.1]
[1764177364346,11.74678193,2944.7,2943.9,0.001]
[1764177364347,0.13605419,2944.6,2943.9,0.001]
[1764177364761,0.90600668,2946.3,2944.5,12.099507]
[1764177365040,7.10494424,2946.2,2945.5,0.1]
[1764177365237,0.215,2946.5,2945.3,0.62686892]
[1764177365238,0.31650872,2946.1,2945.3,0.62686892]
[1764177365402,0.31650872,2946.0,2945.9,0.1]
[1764177365923,0.31650872,2946.0,2945.3,7.00545479]
[1764177366244,6.78828148,2946.3,2945.5,0.1]
[1764177366439,0.31654433,2946.2,2946.1,0.1]
[1764177366737,0.31654433,2946.2,2945.3,7.00545479]
[1764177366938,0.31654433,2946.1,2946.0,0.1]
[1764177368746,3.71086224,2946.1,2945.7,0.1]
[1764177368949,0.31654433,2946.0,2945.5,0.215]
[1764177369128,0.31654433,2946.0,2945.9,0.1]
[1764177370045,0.405504,2945.9,2945.5,0.215]
[1764177370422,3.80005235,2945.9,2945.8,0.1]
[1764177370625,3.39411443,2946.3,2945.5,0.215]
[1764177370830,3.39411443,2946.3,2945.5,7.00500088]
[1764177370831,0.31674145,2946.2,2945.5,7.00500088]
[1764177371031,0.31674145,2946.1,2945.5,3.60998939]
[1764177371239,0.31674145,2946.0,2945.9,0.1]
[1764177371549,1.13109811,2946.6,2945.5,3.60998939]
[1764177371550,0.31675031,2946.2,2945.5,7.00499872]
[1764177371850,0.31675031,2946.1,2945.7,0.1]
[1764177372156,0.3167451,2946.0,2945.5,3.60999549]
[1764177372342,0.405504,2946.3,2945.5,7.00500482]
[1764177372546,0.31684492,2946.2,2945.7,3.39467308]
[1764177372735,0.31684492,2946.1,2945.6,3.39565334]
[1764177372920,0.31684492,2946.0,2945.8,0.1]
[1764177373129,4.52529132,2946.3,2946.2,0.1]
[1764177373323,0.31693277,2946.3,2945.6,6.78974741]
[1764177373521,0.31693277,2946.2,2946.1,0.1]
[1764177373732,0.73029554,2947.1,2946.2,7.792448]
[1764177373958,0.73029554,2947.1,2945.6,16.97442962]
[1764177373959,0.31695691,2947.0,2946.3,0.215]
[1764177374163,0.31695691,2946.9,2946.3,0.215]
[1764177374324,0.72246091,2946.8,2945.7,0.72559411]
[1764177374531,6.78748386,2946.6,2945.9,0.0008]
[1764177374742,0.31695691,2946.5,2945.8,0.216]
[1764177374950,0.31694164,2946.4,2946.3,0.1]
[1764177375229,0.31694164,2946.4,2945.8,7.00528816]
[1764177375428,0.31694164,2946.3,2946.1,0.1]
[1764177375764,3.79913737,2946.7,2946.6,0.1]
[1764177375969,4.11604712,2946.7,2946.6,0.1]
[1764177376470,7.50968049,2946.7,2945.8,3.61062458]
[1764177376774,0.31690975,2946.6,2946.5,0.1]
[1764177376937,0.31690975,2946.6,2945.8,3.61062458]
[1764177377142,0.31690975,2946.5,2945.8,3.61062458]
[1764177377443,0.31671449,2946.4,2945.8,3.61062458]
[1764177377637,0.31671449,2946.3,2946.2,0.1]
[1764177378041,0.31671449,2946.3,2945.8,3.61065911]
[1764177378254,0.72559411,2946.6,2946.5,0.1]
[1764177378428,1.04233661,2946.6,2946.5,0.1]
[1764177378757,4.43607854,2946.6,2946.5,0.1]
[1764177379780,0.3167425,2946.6,2946.3,0.215]
[1764177380062,0.3167425,2946.5,2946.3,0.215]
[1764177380228,0.3167425,2946.4,2946.3,0.215]
[1764177380645,0.3167425,2946.4,2946.3,3.70908749]
[1764177381163,3.39284905,2947.4,2946.3,7.538397]
[1764177381353,0.31653581,2947.3,2946.3,7.00317498]
[1764177381529,0.31653499,2947.2,2946.3,7.00317498]
[1764177381730,0.405504,2947.0,2945.9,0.69005325]
[1764177381930,0.405504,2946.8,2946.0,0.215]
[1764177382135,0.31653482,2946.7,2946.0,0.215]
[1764177382364,0.72203882,2946.6,2945.9,0.69005325]
[1764177382543,6.78817498,2946.3,2945.9,0.69005325]
[1764177382749,0.31653482,2946.2,2945.8,0.216]
[1764177382954,0.31653482,2946.1,2945.8,0.216]
[1764177383156,3.39408749,2946.3,2945.8,0.216]
[1764177383469,3.79959149,2946.3,2946.2,0.1]
[1764177383760,4.11611347,2946.3,2946.2,0.1]